[Event "3rd Rio Open-Blitz 2024"]
[Site "Rio de Janeiro"]
[Date "2024.04.27"]
[Round "6.4"]
[White "Ribeiro, Matheus Mendes Domin"]
[Black "Mafra, Kaiser Luiz"]
[Result "1/2-1/2"]
[ECO "E71"]
[WhiteElo "2228"]
[BlackElo "2074"]
[Annotator "NA RC"]
[PlyCount "32"]
[EventDate "2024.04.12"]
[EventType "swiss"]
[EventCountry "BRA"]
[SourceTitle "playchess.com"]
[Source "ChessBase"]
[SourceQuality "1"]
[TimeControl "180+2"]

1. c4 {[%emt 0:00:01]} Nf6 {[%emt 0:00:03]} 2. Nc3 {[%emt 0:00:01]} g6 {[%emt 0:00:01]} 3. e4 {[%emt 0:00:02]} d6 {[%emt 0:00:01]} 4. d4 {[%emt 0:00:01]} Bg7 {[%emt 0:00:02]} 5. h3 {[%emt 0:00:01]} O-O {[%emt 0:00:01]} 6. Be3 {[%emt 0:00:01]} Nc6 {[%emt 0:00:07]} 7. d5 {[%emt 0:00:12]} Nb8 {[%emt 0:00:03]} 8. f4 {[%emt 0:00:05]} e5 {[%emt 0:00:12]} 9. fxe5 {[%emt 0:00:14]} Nh5 {[%emt 0:00:02]} 10. Qf3 {[%emt 0:00:13]} Bxe5 {[%emt 0:00:05]} 11. Nge2 {[%emt 0:00:01]} f5 {[%emt 0:00:08]} 12. O-O-O {[%emt 0:00:09]} fxe4 {[%emt 0:00:10]} 13. Qxe4 {[%emt 0:00:31]} Bf5 {[%emt 0:00:13]} 14. Qf3 {[%emt 0:00:01]} Bd7 {[%emt 0:00:15]} 15. Qe4 {[%emt 0:00:02]} Bf5 {[%emt 0:00:14]} 16. Qf3 {[%emt 0:00:01]} Bc2 {[%emt 0:00:21]} 1/2-1/2

[Event "3rd Rio Open-Blitz 2024"]
[Site "Rio de Janeiro"]
[Date "2024.04.27"]
[Round "6.5"]
[White "Guimaraes, Wagner Peixoto"]
[Black "Barros, Angelo Costa"]
[Result "1-0"]
[ECO "E05"]
[WhiteElo "2140"]
[BlackElo "1825"]
[Annotator "NA RC"]
[PlyCount "88"]
[EventDate "2024.04.12"]
[EventType "swiss"]
[EventCountry "BRA"]
[SourceTitle "playchess.com"]
[Source "ChessBase"]
[SourceQuality "1"]
[TimeControl "180+2"]

1. d4 {[%emt 0:00:01]} Nf6 {[%emt 0:00:01]} 2. c4 {[%emt 0:00:01]} e6 {[%emt 0:00:01]} 3. Nf3 {[%emt 0:03:06]} d5 4. g3 {[%emt 0:00:00]} Be7 {[%emt 0:00:02]} 5. Bg2 {[%emt 0:00:00]} O-O {[%emt 0:00:03]} 6. O-O {[%emt 0:00:00]} dxc4 {[%emt 0:00:01]} 7. a4 {[%emt 0:00:00]} Nc6 {[%emt 0:00:02]} 8. e3 {[%emt 0:00:00]} Na5 {[%emt 0:00:11]} 9. Nbd2 {[%emt 0:00:00]} c5 {[%emt 0:00:01]} 10. dxc5 {[%emt 0:00:00]} Bxc5 {[%emt 0:00:02]} 11. Ne5 {[%emt 0:00:00]} c3 {[%emt 0:00:57]} 12. bxc3 {[%emt 0:00:00]} Qc7 {[%emt 0:00:09]} 13. Ndf3 {[%emt 0:00:00]} Nd5 {[%emt 0:00:14]} 14. Bd2 {[%emt 0:00:00]} b6 {[%emt 0:00:15]} 15. c4 {[%emt 0:00:24]} Nb4 {[%emt 0:00:17]} 16. Bxb4 {[%emt 0:00:00]} Bxb4 {[%emt 0:00:03]} 17. Qc2 {[%emt 0:00:00]} Bb7 {[%emt 0:00:06]} 18. Ng5 {[%emt 0:00:00]} g6 {[%emt 0:00:02]} 19. Bxb7 {[%emt 0:00:00]} Nxb7 {[%emt 0:00:09]} 20. Nd3 {[%emt 0:00:00]} Be7 {[%emt 0:00:02]} 21. Nf3 {[%emt 0:00:00]} Rac8 {[%emt 0:00:02]} 22. Rac1 {[%emt 0:00:00]} Bf6 {[%emt 0:00:14]} 23. Rfd1 {[%emt 0:00:00]} Rfd8 {[%emt 0:00:01]} 24. h4 {[%emt 0:00:00]} Nc5 {[%emt 0:00:08]} 25. Nxc5 {[%emt 0:00:01]} Rxd1+ {[%emt 0:00:02]} 26. Rxd1 {[%emt 0:00:02]} Qxc5 {[%emt 0:00:01]} 27. Rc1 {[%emt 0:00:04]} h5 {[%emt 0:00:06]} 28. Qe4 {[%emt 0:00:02]} Kg7 {[%emt 0:00:02]} 29. Kg2 {[%emt 0:00:10]} Qb4 {[%emt 0:00:01]} 30. Qb7 {[%emt 0:00:02]} Rxc4 {[%emt 0:00:09]} 31. Rxc4 {[%emt 0:00:01]} Qxc4 {[%emt 0:00:40]} 32. Qxa7 {[%emt 0:00:01]} Qc6 {[%emt 0:00:00]} 33. Qa6 {[%emt 0:00:04]} Qc5 {[%emt 0:00:00]} 34. Qb5 {[%emt 0:00:02]} Qc7 {[%emt 0:00:00]} 35. e4 {[%emt 0:00:04]} Be7 {[%emt 0:00:00]} 36. Qb2+ {[%emt 0:00:05]} Bf6 {[%emt 0:00:03]} 37. e5 {[%emt 0:00:01]} Be7 {[%emt 0:00:09]} 38. Qb5 {[%emt 0:00:07]} Bc5 {[%emt 0:00:00]} 39. Qc4 {[%emt 0:00:00]} Qd8 {[%emt 0:00:00]} 40. a5 {[%emt 0:00:00]} Qd5 {[%emt 0:00:00]} 41. Qxd5 {[%emt 0:00:01]} exd5 {[%emt 0:00:00]} 42. axb6 {[%emt 0:00:02]} Bxb6 {[%emt 0:00:01]} 43. Nd2 {[%emt 0:00:01]} Bc7 {[%emt 0:00:03]} 44. f4 {[%emt 0:00:01]} f6 {[%emt 0:00:01]} 1-0

[Event "3rd Rio Open-Blitz 2024"]
[Site "Rio de Janeiro"]
[Date "2024.04.27"]
[Round "6.6"]
[White "Oliveira, Fernando Ventura"]
[Black "Guimaraes, Lucas Dos S Peixoto"]
[Result "1-0"]
[ECO "D04"]
[WhiteElo "2044"]
[BlackElo "2019"]
[Annotator "NA RC"]
[PlyCount "135"]
[EventDate "2024.04.12"]
[EventType "swiss"]
[EventCountry "BRA"]
[SourceTitle "playchess.com"]
[Source "ChessBase"]
[SourceQuality "1"]
[TimeControl "180+2"]

1. d4 {[%emt 0:00:02]} Nf6 {[%emt 0:00:00]} 2. Nf3 {[%emt 0:00:01]} c5 {[%emt 0:00:01]} 3. e3 {[%emt 0:00:02]} d5 {[%emt 0:00:01]} 4. b3 {[%emt 0:03:05]} g6 {[%emt 0:00:02]} 5. Bb2 {[%emt 0:00:00]} Bg7 {[%emt 0:00:01]} 6. Nbd2 {[%emt 0:00:00]} Ne4 {[%emt 0:00:02]} 7. Bd3 {[%emt 0:00:00]} Nxd2 {[%emt 0:00:15]} 8. Qxd2 {[%emt 0:00:00]} Nc6 {[%emt 0:00:03]} 9. a3 {[%emt 0:00:00]} O-O {[%emt 0:00:03]} 10. O-O {[%emt 0:00:00]} Bg4 {[%emt 0:00:06]} 11. Ne5 {[%emt 0:00:00]} Nxe5 {[%emt 0:00:09]} 12. dxe5 {[%emt 0:00:00]} Qc7 {[%emt 0:00:31]} 13. h3 {[%emt 0:00:00]} Be6 {[%emt 0:00:10]} 14. f4 {[%emt 0:00:20]} c4 {[%emt 0:00:16]} 15. Be2 {[%emt 0:00:00]} cxb3 {[%emt 0:00:07]} 16. cxb3 {[%emt 0:00:00]} Qb6 {[%emt 0:00:01]} 17. b4 {[%emt 0:00:00]} Rfc8 {[%emt 0:00:11]} 18. Bd4 {[%emt 0:00:00]} Qd8 {[%emt 0:00:02]} 19. Rac1 {[%emt 0:00:00]} Qd7 {[%emt 0:00:08]} 20. Kh2 {[%emt 0:00:00]} h5 {[%emt 0:00:08]} 21. Rxc8+ {[%emt 0:00:00]} Rxc8 {[%emt 0:00:05]} 22. Rc1 {[%emt 0:00:00]} Rc7 {[%emt 0:00:21]} 23. Bxa7 {[%emt 0:00:00]} Rxc1 {[%emt 0:00:21]} 24. Qxc1 {[%emt 0:00:00]} h4 {[%emt 0:00:11]} 25. Qc5 {[%emt 0:00:00]} Qa4 {[%emt 0:00:15]} 26. Bb6 {[%emt 0:00:00]} Qxa3 {[%emt 0:00:08]} 27. Qxe7 {[%emt 0:00:00]} Qb2 {[%emt 0:00:03]} 28. Qd8+ {[%emt 0:00:00]} Kh7 {[%emt 0:00:11]} 29. Qxh4+ {[%emt 0:00:00]} Kg8 {[%emt 0:00:00]} 30. Bf3 {[%emt 0:00:00]} Qxb4 {[%emt 0:00:01]} 31. Bd8 {[%emt 0:00:00]} Qa3 {[%emt 0:00:06]} 32. Qe1 {[%emt 0:00:10]} b5 {[%emt 0:00:00]} 33. Qe2 {[%emt 0:00:05]} b4 {[%emt 0:00:01]} 34. Be7 {[%emt 0:00:01]} Qc3 {[%emt 0:00:02]} 35. Qb5 {[%emt 0:00:07]} b3 {[%emt 0:00:00]} 36. Ba3 {[%emt 0:00:04]} Kh7 {[%emt 0:00:03]} 37. Qb7 {[%emt 0:00:03]} Qxe3 {[%emt 0:00:04]} 38. Qb4 {[%emt 0:00:03]} Kg8 {[%emt 0:00:02]} 39. Qb8+ {[%emt 0:00:01]} Kh7 {[%emt 0:00:01]} 40. Qb4 {[%emt 0:00:02]} Kg8 {[%emt 0:00:01]} 41. Bb2 {[%emt 0:00:03]} d4 {[%emt 0:00:02]} 42. Qxd4 {[%emt 0:00:02]} Qxd4 {[%emt 0:00:02]} 43. Bxd4 {[%emt 0:00:02]} Bf8 {[%emt 0:00:01]} 44. Bb2 {[%emt 0:00:01]} Bb4 {[%emt 0:00:00]} 45. Kg3 {[%emt 0:00:02]} Kf8 {[%emt 0:00:00]} 46. Bc6 {[%emt 0:00:02]} Ke7 {[%emt 0:00:01]} 47. Kf3 {[%emt 0:00:01]} Kd8 {[%emt 0:00:01]} 48. Ke4 {[%emt 0:00:03]} Kc7 {[%emt 0:00:01]} 49. Bb5 {[%emt 0:00:02]} Kb6 {[%emt 0:00:01]} 50. Be8 {[%emt 0:00:02]} Bf5+ {[%emt 0:00:01]} 51. Kd4 {[%emt 0:00:01]} Bc5+ {[%emt 0:00:01]} 52. Kc4 {[%emt 0:00:19]} Be6+ 53. Kc3 {[%emt 0:00:00]} Bd5 {[%emt 0:00:01]} 54. g4 {[%emt 0:00:00]} Ka5 {[%emt 0:00:02]} 55. f5 {[%emt 0:00:06]} Bb4+ {[%emt 0:00:25]} 56. Kd4 {[%emt 0:00:00]} Bg2 {[%emt 0:00:00]} 57. Bxf7 {[%emt 0:00:00]} gxf5 {[%emt 0:00:04]} 58. gxf5 {[%emt 0:00:00]} Bxh3 {[%emt 0:00:02]} 59. f6 {[%emt 0:00:00]} Ka4 {[%emt 0:00:00]} 60. Be8+ {[%emt 0:00:00]} Ka5 {[%emt 0:00:00]} 61. Bc6 {[%emt 0:00:00]} Kb6 {[%emt 0:00:00]} 62. Bd5 {[%emt 0:00:14]} Kc7 {[%emt 0:00:00]} 63. e6 {[%emt 0:00:00]} Kd6 {[%emt 0:00:10]} 64. e7 {[%emt 0:00:00]} Bd7 {[%emt 0:00:00]} 65. Kc4 {[%emt 0:00:00]} Be1 {[%emt 0:00:00]} 66. Ba3+ {[%emt 0:00:08]} Kc7 {[%emt 0:00:00]} 67. f7 {[%emt 0:00:02]} b2 {[%emt 0:00:08]} 68. Bxb2 {[%emt 0:00:02]} 1-0

[Event "3rd Rio Open-Blitz 2024"]
[Site "Rio de Janeiro"]
[Date "2024.04.27"]
[Round "7.1"]
[White "Labussiere, Yago"]
[Black "Lage, Pedro Ferreira"]
[Result "1-0"]
[ECO "D11"]
[WhiteElo "2184"]
[BlackElo "2061"]
[Annotator "NA RC"]
[PlyCount "53"]
[EventDate "2024.04.12"]
[EventType "swiss"]
[EventCountry "BRA"]
[SourceTitle "playchess.com"]
[Source "ChessBase"]
[SourceQuality "1"]
[TimeControl "180+2"]

1. Nf3 {[%emt 0:00:03]} d5 {[%emt 0:00:02]} 2. g3 {[%emt 0:00:01]} c6 {[%emt 0:00:04]} 3. Bg2 {[%emt 0:00:01]} Bg4 {[%emt 0:00:05]} 4. O-O {[%emt 0:00:03]} Nd7 {[%emt 0:00:02]} 5. d4 {[%emt 0:00:13]} Ngf6 {[%emt 0:00:06]} 6. c4 {[%emt 0:00:13]} e6 {[%emt 0:00:01]} 7. Nc3 {[%emt 0:00:03]} dxc4 {[%emt 0:00:26]} 8. a4 {[%emt 0:00:06]} Be7 {[%emt 0:00:04]} 9. Nd2 {[%emt 0:00:07]} a5 {[%emt 0:00:19]} 10. Nxc4 {[%emt 0:00:02]} O-O {[%emt 0:00:03]} 11. h3 {[%emt 0:00:06]} Bh5 {[%emt 0:00:08]} 12. Qb3 {[%emt 0:00:25]} Qc8 {[%emt 0:00:27]} 13. g4 {[%emt 0:00:10]} Bg6 {[%emt 0:00:01]} 14. Rd1 {[%emt 0:00:01]} h5 {[%emt 0:00:25]} 15. g5 {[%emt 0:00:26]} Nd5 {[%emt 0:00:02]} 16. e4 {[%emt 0:00:07]} Nb4 {[%emt 0:00:25]} 17. Bf4 {[%emt 0:00:11]} Rd8 {[%emt 0:00:08]} 18. Na2 {[%emt 0:00:34]} b5 {[%emt 0:00:28]} 19. axb5 {[%emt 0:00:31]} cxb5 {[%emt 0:00:01]} 20. Nxa5 {[%emt 0:00:05]} Rxa5 {[%emt 0:00:22]} 21. Nxb4 {[%emt 0:00:01]} Rxa1 {[%emt 0:00:02]} 22. Rxa1 {[%emt 0:00:00]} Bxb4 {[%emt 0:00:02]} 23. Qxb4 {[%emt 0:00:02]} Qc4 {[%emt 0:00:01]} 24. Qe7 {[%emt 0:00:08]} Qc8 {[%emt 0:00:02]} 25. Rc1 {[%emt 0:00:03]} Qa8 {[%emt 0:00:01]} 26. Bc7 {[%emt 0:00:05]} Rc8 {[%emt 0:00:04]} 27. Qxd7 {[%emt 0:00:01]} 1-0

[Event "3rd Rio Open-Blitz 2024"]
[Site "Rio de Janeiro"]
[Date "2024.04.27"]
[Round "7.2"]
[White "Fier, Alexandr"]
[Black "Guimaraes, Wagner Peixoto"]
[Result "1-0"]
[ECO "B30"]
[WhiteElo "2566"]
[BlackElo "2140"]
[Annotator "TA"]
[PlyCount "81"]
[EventDate "2024.04.12"]
[EventType "swiss"]
[EventCountry "BRA"]
[SourceTitle "playchess.com"]
[Source "ChessBase"]
[SourceQuality "1"]
[TimeControl "180+2"]

{[%evp 9,81,4,-1,7,16,15,44,41,48,52,57,16,57,21,47,10,33,15,134,144,140,45,136,68,80,62,207,195,170,31,50,39,93,51,52,-49,-36,-44,-35,-54,-4,-6,-6,-16,-21,-6,-6,-7,-7,0,0,0,0,0,0,0,0,0,0,0,0,-110,0,0,160,131,48,103,304,1504,2174,1720,6099,6031]} 1. e4 {[%emt 0:00:01]} c5 {[%emt 0:00:01]} 2. Nc3 {[%emt 0:00:01]} Nc6 {[%emt 0:00:01]} 3. Bb5 {[%emt 0:00:01]} Nd4 {[%emt 0:00:12]} 4. Bc4 {[%emt 0:00:01]} e6 {[%emt 0:00:01]} 5. Nf3 {[%emt 0:00:02]} Nf6 {[%emt 0:00:05]} 6. O-O {[%emt 0:00:01]} d6 {[%emt 0:00:06]} 7. d3 {[%emt 0:00:06]} Be7 {[%emt 0:00:08]} 8. Nxd4 {[%emt 0:00:01] White is slightly better.} cxd4 {[%emt 0:00:01]} 9. Ne2 {[%emt 0:00:01]} e5 {[%emt 0:00:09]} 10. f4 {[%emt 0:00:02]} Be6 {[%emt 0:00:14]} 11. Bb3 {[%emt 0:00:04]} a5 {[%emt 0:00:18]} 12. Ng3 {[%emt 0:00:05]} exf4 {[%emt 0:00:05]} 13. Bxf4 {[%emt 0:00:04]} Qb6 {[%emt 0:00:16]} (13... a4 $11 {keeps the balance.} 14. Bxe6 fxe6) 14. Ba4+ $16 {[%emt 0:00:08]} Kf8 {[%emt 0:00:01][%cal Oh7h5]} 15. Bg5 {[%emt 0:00:07]} (15. h3 $16) 15... Qc5 {[%emt 0:00:07]} (15... Ng4 $14 16. Bd2 Ne5) 16. Bxf6 {[%emt 0:00:17]} (16. Nf5 $16) 16... Bxf6 $14 {[%emt 0:00:03]} 17. Bb3 {[%emt 0:00:00]} (17. Nh5 {with more complications.} Qg5 18. Nxf6 gxf6 19. Qf3) 17... a4 {[%emt 0:00:14]} (17... h5 $14) 18. Bxe6 $18 {[%emt 0:00:03]} fxe6 {[%emt 0:00:01]} 19. Nh5 {[%emt 0:00:01]} ({White should try} 19. Qg4 $1 $18 {Black must now prevent Nh5.} Kf7 20. Nh5) 19... Ke7 $14 {[%emt 0:00:08]} 20. Qg4 {[%emt 0:00:08]} Rag8 {[%emt 0:00:10]} (20... Qg5 $14 21. Nxf6 gxf6) 21. Rf2 {[%emt 0:00:07] White is more active.} Qg5 {[%emt 0:00:08]} 22. Qh3 {[%emt 0:00:12]} (22. Nxf6 $14 gxf6 23. Qf3) 22... Be5 $15 {[%emt 0:00:08]} 23. Raf1 {[%emt 0:00:23]} Rf8 $36 {[%emt 0:00:02][%mdl 2048] Repels Rf7+. Black is pushing.} 24. g3 $1 {[%emt 0:00:01]} Qe3 {[%emt 0:00:05]} (24... Rxf2 $15 25. Rxf2 Qc1+ 26. Kg2 h6 (26... Qxb2 27. Nxg7 Bxg7 28. Qh4+ Kd7 29. Rf7+ Kc8 30. Qe7 $11)) 25. Kg2 {[%emt 0:00:02]} Rxf2+ {[%emt 0:00:05]} 26. Rxf2 {[%emt 0:00:01]} Rf8 {[%emt 0:00:06]} (26... g5 {keeps more tension.} 27. Qg4 Rf8 28. Rxf8 Kxf8 29. h4 h6) 27. Rxf8 {[%emt 0:00:17]} Kxf8 $11 {[%emt 0:00:01][%mdl 4096] Endgame. KQB-KQN} 28. Qg4 {[%emt 0:00:02] Dodges Qe2+} g6 {[%emt 0:00:08]} (28... g5 {seems wilder.} 29. h4 h6 30. Qf3+ Ke7) 29. Nf4 {[%emt 0:00:01]} Qd2+ {[%emt 0:00:24]} 30. Kh3 {[%emt 0:00:06]} Bxf4 {[%emt 0:00:14]} 31. Qxf4+ {[%emt 0:00:15]} Qxf4 {[%emt 0:00:01]} 32. gxf4 {[%emt 0:00:00] KP-KP} Kg7 {[%emt 0:00:05]} 33. c4 {[%emt 0:00:18]} dxc3 {[%emt 0:00:10]} 34. bxc3 {[%emt 0:00:01]} Kf6 {[%emt 0:00:06]} 35. c4 {[%emt 0:00:01] [#]} (35. Kg4 $11 {remains equal.}) 35... b6 {[%emt 0:00:00]} (35... d5 $1 $17 {[%cal Rd5e4]} 36. exd5 exd5) 36. Kg4 {[%emt 0:00:02]} h5+ $2 {[%emt 0:00:02] [#]} (36... e5 $11) 37. Kf3 $1 $16 {[%emt 0:00:13]} e5 {[%emt 0:00:04]} ({Black should play} 37... Ke7 $16) 38. h4 $14 {[%emt 0:00:03] And now a3 would win.} Ke6 $2 {[%emt 0:00:04]} (38... a3 $16 39. d4 Ke6 (39... exd4 $2 {is the wrong capture.} 40. Ke2 $18) 40. dxe5 dxe5 41. fxe5 Kxe5) 39. Ke3 $18 {[%emt 0:00:01]} Kf6 {[%emt 0:00:06]} 40. d4 exd4+ {[%emt 0:00:02]} 41. Kxd4 {[%emt 0:01:04] Weighted Error Value: White=0.30/Black=0.38.  Loses game:     	---       	Black=1      Mistake:       	White=5     	Black=8      Inaccurate:     	White=4     	Black=4      OK:         	White=9     	Black=4      Best:        	White=4     	Black=2      Strong:       	White=2     	---} 1-0

[Event "3rd Rio Open-Blitz 2024"]
[Site "Rio de Janeiro"]
[Date "2024.04.27"]
[Round "7.3"]
[White "Mafra, Kaiser Luiz"]
[Black "De Siqueira, Luigy Lira"]
[Result "0-1"]
[ECO "C26"]
[WhiteElo "2074"]
[BlackElo "2274"]
[Annotator "NA"]
[PlyCount "86"]
[EventDate "2024.04.12"]
[EventType "swiss"]
[EventCountry "BRA"]
[SourceTitle "playchess.com"]
[Source "ChessBase"]
[SourceQuality "1"]
[TimeControl "180+2"]

1. e4 {[%emt 0:00:01]} e5 {[%emt 0:00:00]} 2. Nf3 {[%emt 0:00:02]} Nc6 {[%emt 0:00:01]} 3. Nc3 {[%emt 0:00:01]} Nf6 {[%emt 0:00:03]} 4. g3 {[%emt 0:00:01]} Bc5 {[%emt 0:00:05]} 5. d3 {[%emt 0:00:01]} h6 {[%emt 0:00:03]} 6. Bg2 {[%emt 0:00:04]} d6 {[%emt 0:00:03]} 7. Na4 {[%emt 0:00:02]} Bb6 {[%emt 0:00:03]} 8. O-O {[%emt 0:00:04]} O-O {[%emt 0:00:02]} 9. h3 {[%emt 0:00:07]} Be6 {[%emt 0:00:02]} 10. Nxb6 {[%emt 0:00:10]} axb6 {[%emt 0:00:01]} 11. c4 {[%emt 0:00:01]} Qd7 {[%emt 0:00:14]} 12. Kh2 {[%emt 0:00:02]} Rfe8 {[%emt 0:00:03]} 13. Be3 {[%emt 0:00:08]} Ne7 {[%emt 0:00:17]} 14. Qd2 {[%emt 0:00:11]} Ng6 {[%emt 0:00:04]} 15. Ng1 {[%emt 0:00:29]} b5 {[%emt 0:02:13]} 16. b3 {[%emt 0:00:02]} bxc4 {[%emt 0:00:04]} 17. dxc4 {[%emt 0:00:03]} Qe7 {[%emt 0:00:04]} 18. Ne2 {[%emt 0:00:10]} Bd7 {[%emt 0:00:01]} 19. Nc3 {[%emt 0:00:03]} Bc6 {[%emt 0:00:05]} 20. Nd5 {[%emt 0:00:03]} Nxd5 {[%emt 0:00:03]} 21. exd5 {[%emt 0:00:06]} Bd7 {[%emt 0:00:02]} 22. Rae1 {[%emt 0:00:30]} f5 {[%emt 0:00:02]} 23. f4 {[%emt 0:00:02]} exf4 {[%emt 0:00:06]} 24. Bxf4 {[%emt 0:00:07]} Qf6 {[%emt 0:00:00]} 25. Be3 {[%emt 0:00:10]} Ne5 {[%emt 0:00:02]} 26. Bd4 {[%emt 0:00:03]} Qg6 {[%emt 0:00:01]} 27. c5 {[%emt 0:00:14]} Bb5 {[%emt 0:00:03]} 28. Rf2 {[%emt 0:00:23]} Qh5 {[%emt 0:00:02]} 29. Bxe5 {[%emt 0:00:03]} dxe5 {[%emt 0:00:02]} 30. a4 {[%emt 0:00:16]} Bd7 {[%emt 0:00:03]} 31. Bf3 {[%emt 0:00:02]} Qf7 {[%emt 0:00:01]} 32. c6 {[%emt 0:00:01]} bxc6 {[%emt 0:00:02]} 33. dxc6 {[%emt 0:00:01]} Bc8 {[%emt 0:00:00]} 34. Bd5 {[%emt 0:00:02]} Be6 {[%emt 0:00:01]} 35. Rxe5 {[%emt 0:00:04]} Bxd5 {[%emt 0:00:02]} 36. Rxd5 {[%emt 0:00:01]} Rab8 {[%emt 0:00:04]} 37. Rdxf5 {[%emt 0:00:04]} Qxb3 {[%emt 0:00:01]} 38. Qd7 {[%emt 0:00:05]} Qxa4 {[%emt 0:00:06]} 39. Rf7 {[%emt 0:00:04]} Qa1 {[%emt 0:00:04]} 40. Qxc7 {[%emt 0:00:07]} Kh8 {[%emt 0:00:00]} 41. Re7 {[%emt 0:00:06]} Rec8 {[%emt 0:00:03]} 42. Qd7 {[%emt 0:00:03]} Qc3 {[%emt 0:00:02]} 43. c7 {[%emt 0:00:04]} Ra8 {[%emt 0:00:00]} 0-1

[Event "3rd Rio Open-Blitz 2024"]
[Site "Rio de Janeiro"]
[Date "2024.04.27"]
[Round "7.4"]
[White "Urquiza, Marcello de Albuquer"]
[Black "Oliveira, Fernando Ventura"]
[Result "0-1"]
[ECO "B30"]
[WhiteElo "2005"]
[BlackElo "2044"]
[Annotator "NA RC"]
[PlyCount "52"]
[EventDate "2024.04.12"]
[EventType "swiss"]
[EventCountry "BRA"]
[SourceTitle "playchess.com"]
[Source "ChessBase"]
[SourceQuality "1"]
[TimeControl "180+2"]

1. e4 {[%emt 0:00:02]} c5 {[%emt 0:00:00]} 2. Nf3 {[%emt 0:00:01]} Nc6 {[%emt 0:00:01]} 3. Bb5 {[%emt 0:00:02]} e6 {[%emt 0:00:01]} 4. O-O {[%emt 0:00:03]} Nge7 {[%emt 0:00:01]} 5. Re1 {[%emt 0:00:01]} a6 {[%emt 0:00:01]} 6. Bf1 {[%emt 0:00:02]} e5 {[%emt 0:00:01]} 7. c4 {[%emt 0:00:20]} g6 {[%emt 0:00:02]} 8. Nc3 {[%emt 0:00:02]} Bg7 {[%emt 0:00:01]} 9. d3 {[%emt 0:00:05]} O-O {[%emt 0:00:03]} 10. Be3 {[%emt 0:00:22]} Nd4 {[%emt 0:00:04]} 11. Rb1 {[%emt 0:00:22]} d6 {[%emt 0:00:02]} 12. b4 {[%emt 0:00:05]} Bg4 {[%emt 0:00:06]} 13. Be2 {[%emt 0:00:01]} Nxe2+ {[%emt 0:00:18]} 14. Qxe2 {[%emt 0:00:02]} b6 {[%emt 0:00:13]} 15. h3 {[%emt 0:00:06]} Bxf3 {[%emt 0:00:08]} 16. Qxf3 {[%emt 0:00:01]} f5 {[%emt 0:00:14]} 17. Bg5 {[%emt 0:00:02]} Bf6 {[%emt 0:00:07]} 18. Bh6 {[%emt 0:00:08]} Rf7 {[%emt 0:00:25]} 19. Nd5 {[%emt 0:00:21]} Nxd5 {[%emt 0:00:20]} 20. exd5 {[%emt 0:00:04]} Qd7 {[%emt 0:00:40]} 21. bxc5 {[%emt 0:00:09]} bxc5 {[%emt 0:00:02]} 22. Bd2 {[%emt 0:00:01]} Qa4 {[%emt 0:00:05]} 23. Rb2 {[%emt 0:00:07]} e4 {[%emt 0:00:01]} 24. Qg3 {[%emt 0:00:37]} Bxb2 {[%emt 0:00:05]} 25. Qxd6 {[%emt 0:00:01]} Bd4 {[%emt 0:00:07]} 26. dxe4 {[%emt 0:00:12]} fxe4 {[%emt 0:00:03]} 0-1

[Event "3rd Rio Open-Blitz 2024"]
[Site "Rio de Janeiro"]
[Date "2024.04.27"]
[Round "7.5"]
[White "Librelato, Kathie Goulart"]
[Black "Ribeiro, Matheus Mendes Domin"]
[Result "0-1"]
[ECO "C18"]
[WhiteElo "2165"]
[BlackElo "2228"]
[Annotator "NA RC"]
[PlyCount "61"]
[EventDate "2024.04.12"]
[EventType "swiss"]
[EventCountry "BRA"]
[SourceTitle "playchess.com"]
[Source "ChessBase"]
[SourceQuality "1"]
[TimeControl "180+2"]

1. e4 {[%emt 0:00:01]} e6 {[%emt 0:00:00]} 2. d4 {[%emt 0:00:01]} d5 {[%emt 0:00:01]} 3. Nc3 {[%emt 0:00:02]} Bb4 {[%emt 0:00:00]} 4. e5 {[%emt 0:00:01]} c5 {[%emt 0:00:04]} 5. a3 {[%emt 0:00:01]} Bxc3+ {[%emt 0:00:03]} 6. bxc3 Ne7 7. h4 {[%emt 0:00:02]} Qc7 {[%emt 0:00:05]} 8. h5 {[%emt 0:00:14]} h6 {[%emt 0:00:01]} 9. Rh3 {[%emt 0:00:04]} b6 {[%emt 0:00:12]} 10. Bb5+ {[%emt 0:00:05]} Bd7 {[%emt 0:00:02]} 11. a4 {[%emt 0:00:01]} Bxb5 {[%emt 0:00:18]} 12. axb5 {[%emt 0:00:02]} a6 {[%emt 0:00:04]} 13. Qg4 {[%emt 0:00:05]} Nf5 {[%emt 0:00:09]} 14. Ne2 {[%emt 0:00:39]} Qb7 {[%emt 0:00:25]} 15. bxa6 {[%emt 0:00:16]} Rxa6 {[%emt 0:00:04]} 16. Rxa6 {[%emt 0:00:06]} Qxa6 {[%emt 0:00:02]} 17. Ng3 {[%emt 0:00:09]} Ne7 {[%emt 0:01:13]} 18. Qxg7 {[%emt 0:00:09]} Rg8 {[%emt 0:00:00]} 19. Qxh6 {[%emt 0:00:09]} cxd4 {[%emt 0:00:04]} 20. cxd4 {[%emt 0:00:07]} Nbc6 {[%emt 0:00:01]} 21. Qf4 {[%emt 0:00:08]} Qa5+ {[%emt 0:00:18]} 22. Kf1 {[%emt 0:00:10]} Qb5+ {[%emt 0:00:13]} 23. Kg1 {[%emt 0:00:05]} Qc4 {[%emt 0:00:02]} 24. h6 {[%emt 0:00:34]} Qxc2 {[%emt 0:00:03]} 25. Nh5 {[%emt 0:00:23]} Rh8 {[%emt 0:00:20]} 26. Nf6+ {[%emt 0:00:01]} Kd8 {[%emt 0:00:00]} 27. Ra3 {[%emt 0:00:05]} Nxd4 {[%emt 0:00:03]} 28. Kh2 {[%emt 0:00:14]} Ng6 {[%emt 0:00:07]} 29. Qe3 {[%emt 0:00:03]} Qf5 {[%emt 0:00:03]} 30. Ra8+ {[%emt 0:00:02]} Kc7 {[%emt 0:00:00]} 31. Rg8 {[%emt 0:00:05]} 0-1